{"text_format":"1","workbook":"xlsx","n_sheets":17,"sheets":["VYPLNOVACI LIST","leden 2015","únor 2015 ","březen 2015","duben 2015","květen 2015","červen 2015","červenec 2015","srpen 2015","září 2015","říjen 2015","listopad 2015","prosinec 2015","leden 2016","únor 2016","březen 2016","duben 2016"],"not_rendered":{"charts":0,"images":5,"macros":0,"external_links":1,"defined_names":16,"comments":16,"pivot_tables":0},"unopened":[],"bounds":{"document_bytes":16777216,"sheet_cells":100000,"rows_first":2000,"rows_last":500,"rows_between":2000,"halvings":0,"cell_chars":16384,"cell_head_chars":4096},"cells_cut":0,"cells_raw":0,"read":"whole","date_system":"1900"}

{"sheet":"VYPLNOVACI LIST","index":0,"n_rows":15,"n_cols":6,"rows_kept":15,"cut":false,"hidden":true,"merged":[]}
[null,"vyplňte žlutá pole."]
[]
[null,"Registrační číslo projektu","CZ.1.07/2.4.00/17.0071"]
[null,"Název projektu","Partnerství a spolupráce v oblasti eHealth"]
[null,"Název příjemce podpory /partnera ","Fakultní nemocnice Olomouc"]
[null,"Položka rozpočtu ","1.1.2.2.3","Jméno, příjmení ","zaměstnán od ","do "]
[null,"1.1.2.2.3","Administrátor projektu a finanční manažer projektu","Ing. Jarmila Neudörflerová"]
[null,"Zaměstnanec",{"$f":"D7","v":"Ing. Jarmila Neudörflerová"}]
[null,"Pracovní pozice",{"$f":"CONCATENATE(B7,\" - \",C7)","v":"1.1.2.2.3 - Administrátor projektu a finanční manažer projektu"}]
[null,"Počet hodin",24]
[]
[null,"Druh pracovního poměru","DPČ"]
[]
[null,"další úvazek v projektech",0]
[null,"Úvazek v další činnosti pro příjemce/partnera*",0.9]

{"sheet":"leden 2015","index":1,"n_rows":62,"n_cols":10,"rows_kept":62,"cut":false,"hidden":false,"merged":[[0,0,0,9],[6,0,6,9],[7,0,7,3],[7,4,7,9],[8,0,8,3],[8,4,8,9],[4,3,4,7],[13,0,13,2],[13,5,13,7],[13,8,13,9],[12,8,12,9],[9,0,9,3],[9,4,9,9],[10,0,10,3],[10,4,10,9],[12,0,12,2],[12,5,12,7],[14,0,14,2],[14,5,14,7],[16,0,16,9],[14,8,14,9],[15,5,15,7],[15,8,15,9],[17,3,17,9],[18,3,18,9],[19,3,19,9],[20,3,20,9],[21,3,21,9],[22,3,22,9],[23,3,23,9],[24,3,24,9],[25,3,25,9],[26,3,26,9],[47,3,47,9],[27,3,27,9],[28,3,28,9],[29,3,29,9],[30,3,30,9],[31,3,31,9],[50,0,50,9],[32,3,32,9],[33,3,33,9],[34,3,34,9],[52,0,52,3],[35,3,35,9],[36,3,36,9],[37,3,37,9],[38,3,38,9],[39,3,39,9],[40,3,40,9],[41,3,41,9],[43,3,43,9],[44,3,44,9],[45,3,45,9],[46,3,46,9],[51,0,51,9],[42,3,42,9],[69,0,71,9],[55,0,57,9],[59,0,59,2],[59,5,59,7],[60,5,60,7],[53,5,53,7],[61,0,61,2],[61,5,61,7],[61,8,61,9],[59,8,59,9],[52,5,52,7],[48,3,48,9],[49,2,49,6],[49,7,49,9]]}
[]
[null,null,null,"                               "]
[null,null,null,null,null,"                                                                             "]
[]
[null,null,null,"Podpořeno grantem z Norska / Supported by Norway grants"]
[]
["PRACOVNÍ VÝKAZ "]
["Registrační číslo projektu",null,null,null,"NF-CZ11-OV-1-012-2015"]
["Název projektu",null,null,null,"Prevence následků onemocnění a zdravotních problémů v dětském věku ve FN Olomouc"]
["Název příjemce podpory /partnera ",null,null,null,{"$f":"'VYPLNOVACI LIST'!C5","v":"Fakultní nemocnice Olomouc"}]
["Pořadové číslo Monitorovací zprávy"]
[null,null,null,"             "]
["Zaměstnanec",null,null,"Mgr. Sabina Procházková",null,"Druh pracovního poměru",null,null,"DPP"]
["Pracovní pozice",null,null,"Právník projektu",null,"Výše měsíčního úvazku pro projekt  v hodinách*",null,null,3]
["Vykazovaný měsíc a rok",null,null,"Leden 2015"]
[]
["Přehled odpracovaných hodin "]
["Den v měsíci","Název dne","Počet odprac. hodin","Detailní popis vykonaných aktivit"]
["1.","Čt",null,"státní svátek "]
["2.","Pá"]
["3.","So"]
["4.","Ne"]
["5.","Po"]
["6.","Út"]
["7.","St"]
["8.","Čt"]
["9.","Pá"]
["10.","So"]
["11.","Ne"]
["12.","Po"]
["13.","Út"]
["14.","St"]
["15.","Čt"]
["16.","Pá"]
["17.","So"]
["18.","Ne"]
["19.","Po",1,"Schůzka projektového týmu"]
["20.","Út"]
["21.","St"]
["22.","Čt"]
["23.","Pá"]
["24.","So"]
["25.","Ne"]
["26.","Po",2,"Jednání s hlavním řešitelem, projektovým manažerem ,odborným garantem, finančním manažerem -téma : Zadávací dokumentace"]
["27.","Út"]
["28.","St"]
["29.","Čt"]
["30.","Pá"]
["31.","So"]
["Celkem",null,{"$f":"SUM(C19:C49)","v":3},null,null,null,null,"hodin"]
[]
[]
["Součet hodin souvisejících s projektem",null,null,null,null," ",null,null,null,"hodin"]
["Počet hodin proplacených v daném měsíci za projekt",null,null,null,null,3,null,null,null,"hodin"]
[]
["*) V případě, že je pracovní výkaz podepsaný pracovníkem, stvrzuje pracovník svým podpisem pravdivost všech zde uvedených informací. V případě, že je tento formulář podepsán jen nadřízeným pracovníkem, je zaměstnanec povinen předložit čestné prohlášení o výši úvazku prací, vykonávaných pro příjemce a partnera, v samostatném dokumentu. \nPodpisem pracovníka je potvrzeno, že z výše uvedeného projektu mu byla vyplacena mzda za předchozí měsíc."]
[]
[]
[]
["Datum",null,null,"31.1.2015",null,"Datum",null,null,"31.1.2015"]
[]
["Podpis pracovníka",null,null,null,null,"Podpis nadřízeného pracovníka"]

{"sheet":"únor 2015 ","index":2,"n_rows":59,"n_cols":10,"rows_kept":59,"cut":false,"hidden":false,"merged":[[0,0,0,9],[4,3,4,7],[6,0,6,9],[7,0,7,3],[7,4,7,9],[8,0,8,3],[8,4,8,9],[9,0,9,3],[9,4,9,9],[10,0,10,3],[10,4,10,9],[12,0,12,2],[12,5,12,7],[12,8,12,9],[13,0,13,2],[13,5,13,7],[13,8,13,9],[14,0,14,2],[14,5,14,7],[14,8,14,9],[15,5,15,7],[15,8,15,9],[16,0,16,9],[17,3,17,9],[18,3,18,9],[19,3,19,9],[20,3,20,9],[21,3,21,9],[22,3,22,9],[23,3,23,9],[24,3,24,9],[25,3,25,9],[26,3,26,9],[27,3,27,9],[28,3,28,9],[29,3,29,9],[30,3,30,9],[31,3,31,9],[32,3,32,9],[33,3,33,9],[34,3,34,9],[35,3,35,9],[36,3,36,9],[37,3,37,9],[44,3,44,9],[45,3,45,9],[46,2,46,6],[46,7,46,9],[38,3,38,9],[39,3,39,9],[40,3,40,9],[41,3,41,9],[42,3,42,9],[43,3,43,9],[47,0,47,9],[48,0,48,9],[49,0,49,3],[49,5,49,7],[50,5,50,7],[52,0,54,9],[66,0,68,9],[56,0,56,2],[56,5,56,7],[56,8,56,9],[57,5,57,7],[58,0,58,2],[58,5,58,7],[58,8,58,9]]}
[]
[null,null,null,"                               "]
[null,null,null,null,null,"                                                                             "]
[]
[null,null,null,"Podpořeno grantem z Norska / Supported by Norway grants"]
[]
["PRACOVNÍ VÝKAZ "]
["Registrační číslo projektu",null,null,null,"NF-CZ11-OV-1-012-2015"]
["Název projektu",null,null,null,"Prevence následků onemocnění a zdravotních problémů v dětském věku ve FN Olomouc"]
["Název příjemce podpory /partnera ",null,null,null,{"$f":"'VYPLNOVACI LIST'!C5","v":"Fakultní nemocnice Olomouc"}]
["Pořadové číslo Monitorovací zprávy"]
[null,null,null,"             "]
["Zaměstnanec",null,null,"Mgr. Sabina Procházková",null,"Druh pracovního poměru",null,null,"DPP"]
["Pracovní pozice",null,null,"Právník projektu",null,"Výše měsíčního úvazku pro projekt  v hodinách*",null,null,3]
["Vykazovaný měsíc a rok",null,null,"Únor 2015"]
[]
["Přehled odpracovaných hodin "]
["Den v měsíci","Název dne","Počet odprac. hodin","Detailní popis vykonaných aktivit"]
["1.","Ne"]
["2.","Po"]
["3.","Út"]
["4.","St"]
["5.","Čt"]
["6.","Pá"]
["7.","So"]
["8.","Ne"]
["9.","Po"]
["10.","Út"]
["11.","St"]
["12.","Čt"]
["13.","Pá"]
["14.","So"]
["15.","Ne"]
["16.","Po"]
["17.","Út"]
["18.","St"]
["19.","Čt"]
["20.","Pá",2,"Finální kontrola zadávací dokumentace k veřejné zakázce ,,Prevence následků onemocnění a zdravotních problémů v dětském  věku ve FN Olomouc\" "]
["21.","So"]
["22.","Ne"]
["23.","Po"]
["24.","Út"]
["25.","St"]
["26.","Čt",1,"Schůzka projektového týmu"]
["27.","Pá"]
["28.","So"]
["Celkem",null,{"$f":"SUM(C19:C46)","v":3},null,null,null,null,"hodin"]
[]
[]
["Součet hodin souvisejících s projektem",null,null,null,null,null,null,null,null,"hodin"]
["Počet hodin proplacených v daném měsíci za projekt",null,null,null,null,3,null,null,null,"hodin"]
[]
["*) V případě, že je pracovní výkaz podepsaný pracovníkem, stvrzuje pracovník svým podpisem pravdivost všech zde uvedených informací. V případě, že je tento formulář podepsán jen nadřízeným pracovníkem, je zaměstnanec povinen předložit čestné prohlášení o výši úvazku prací, vykonávaných pro příjemce a partnera, v samostatném dokumentu. \nPodpisem pracovníka je potvrzeno, že z výše uvedeného projektu mu byla vyplacena mzda za předchozí měsíc."]
[]
[]
[]
["Datum",null,null,"28.02.2015",null,"Datum",null,null,"28.02.2015"]
[]
["Podpis pracovníka",null,null,null,null,"Podpis nadřízeného pracovníka"]

{"sheet":"březen 2015","index":3,"n_rows":62,"n_cols":10,"rows_kept":62,"cut":false,"hidden":false,"merged":[[0,0,0,9],[4,3,4,7],[6,0,6,9],[7,0,7,3],[7,4,7,9],[8,0,8,3],[8,4,8,9],[9,0,9,3],[9,4,9,9],[10,0,10,3],[10,4,10,9],[12,0,12,2],[12,5,12,7],[12,8,12,9],[13,0,13,2],[13,5,13,7],[13,8,13,9],[14,0,14,2],[14,5,14,7],[14,8,14,9],[15,5,15,7],[15,8,15,9],[16,0,16,9],[17,3,17,9],[18,3,18,9],[19,3,19,9],[20,3,20,9],[21,3,21,9],[22,3,22,9],[23,3,23,9],[24,3,24,9],[25,3,25,9],[26,3,26,9],[27,3,27,9],[28,3,28,9],[29,3,29,9],[30,3,30,9],[31,3,31,9],[32,3,32,9],[33,3,33,9],[34,3,34,9],[35,3,35,9],[36,3,36,9],[37,3,37,9],[48,3,48,9],[38,3,38,9],[39,3,39,9],[40,3,40,9],[41,3,41,9],[42,3,42,9],[43,3,43,9],[44,3,44,9],[45,3,45,9],[51,0,51,9],[46,3,46,9],[47,3,47,9],[61,5,61,7],[61,8,61,9],[49,2,49,6],[49,7,49,9],[50,0,50,9],[69,0,71,9],[52,0,52,3],[52,5,52,7],[53,5,53,7],[55,0,57,9],[59,0,59,2],[59,5,59,7],[59,8,59,9],[60,5,60,7],[61,0,61,2]]}
[]
[null,null,null,"                               "]
[null,null,null,null,null,"                                                                             "]
[]
[null,null,null,"Podpořeno grantem z Norska / Supported by Norway grants"]
[]
["PRACOVNÍ VÝKAZ "]
["Registrační číslo projektu",null,null,null,"NF-CZ11-OV-1-012-2015"]
["Název projektu",null,null,null,"Prevence následků onemocnění a zdravotních problémů v dětském věku ve FN Olomouc"]
["Název příjemce podpory /partnera ",null,null,null,{"$f":"'VYPLNOVACI LIST'!C5","v":"Fakultní nemocnice Olomouc"}]
["Pořadové číslo Monitorovací zprávy"]
[null,null,null,"             "]
["Zaměstnanec",null,null,"Mgr. Sabina Procházková",null,"Druh pracovního poměru",null,null,"DPP"]
["Pracovní pozice",null,null,"Právník projektu",null,"Výše měsíčního úvazku pro projekt  v hodinách*",null,null,3]
["Vykazovaný měsíc a rok",null,null,"Březen 2015"]
[]
["Přehled odpracovaných hodin "]
["Den v měsíci","Název dne","Počet odprac. hodin","Detailní popis vykonaných aktivit"]
["1.","Ne"]
["2.","Po"]
["3.","Út"]
["4.","St"]
["5.","Čt"]
["6.","Pá"]
["7.","So"]
["8.","Ne"]
["9.","Po"]
["10.","Út"]
["11.","St"]
["12.","Čt"]
["13.","Pá"]
["14.","So"]
["15.","Ne"]
["16.","Po"]
["17.","Út"]
["18.","St"]
["19.","Čt"]
["20.","Pá",2,"Seminář na Ministerstvu zdravotnictví - využití finančních prostředků v Programu CZ 11/financováno z Norských fondů/"]
["21.","So"]
["22.","Ne"]
["23.","Po"]
["24.","Út",1,"Schůzka projektového týmu"]
["25.","St"]
["26.","Čt"]
["27.","Pá"]
["28.","So"]
["29.","Ne"]
["30.","Po"]
["31.","Út"]
["Celkem",null,{"$f":"SUM(C19:C46)","v":3},null,null,null,null,"hodin"]
[]
[]
["Součet hodin souvisejících s projektem",null,null,null,null,null,null,null,null,"hodin"]
["Počet hodin proplacených v daném měsíci za projekt",null,null,null,null,3,null,null,null,"hodin"]
[]
["*) V případě, že je pracovní výkaz podepsaný pracovníkem, stvrzuje pracovník svým podpisem pravdivost všech zde uvedených informací. V případě, že je tento formulář podepsán jen nadřízeným pracovníkem, je zaměstnanec povinen předložit čestné prohlášení o výši úvazku prací, vykonávaných pro příjemce a partnera, v samostatném dokumentu. \nPodpisem pracovníka je potvrzeno, že z výše uvedeného projektu mu byla vyplacena mzda za předchozí měsíc."]
[]
[]
[]
["Datum",null,null,"31.03.2015",null,"Datum",null,null,"31.03.2015"]
[]
["Podpis pracovníka",null,null,null,null,"Podpis nadřízeného pracovníka"]

{"sheet":"duben 2015","index":4,"n_rows":61,"n_cols":10,"rows_kept":61,"cut":false,"hidden":false,"merged":[[68,0,70,9],[58,0,58,2],[58,5,58,7],[58,8,58,9],[59,5,59,7],[60,0,60,2],[60,5,60,7],[60,8,60,9],[54,0,56,9],[44,3,44,9],[45,3,45,9],[46,3,46,9],[47,3,47,9],[48,2,48,6],[48,7,48,9],[49,0,49,9],[50,0,50,9],[51,0,51,3],[51,5,51,7],[52,5,52,7],[43,3,43,9],[32,3,32,9],[33,3,33,9],[34,3,34,9],[35,3,35,9],[36,3,36,9],[37,3,37,9],[38,3,38,9],[39,3,39,9],[40,3,40,9],[41,3,41,9],[42,3,42,9],[31,3,31,9],[20,3,20,9],[21,3,21,9],[22,3,22,9],[23,3,23,9],[24,3,24,9],[25,3,25,9],[26,3,26,9],[27,3,27,9],[28,3,28,9],[29,3,29,9],[30,3,30,9],[19,3,19,9],[13,0,13,2],[13,5,13,7],[13,8,13,9],[14,0,14,2],[14,5,14,7],[14,8,14,9],[15,5,15,7],[15,8,15,9],[16,0,16,9],[17,3,17,9],[18,3,18,9],[9,0,9,3],[9,4,9,9],[10,0,10,3],[10,4,10,9],[12,0,12,2],[12,5,12,7],[12,8,12,9],[8,0,8,3],[8,4,8,9],[0,0,0,9],[4,3,4,7],[6,0,6,9],[7,0,7,3],[7,4,7,9]]}
[]
[null,null,null,"                               "]
[null,null,null,null,null,"                                                                             "]
[]
[null,null,null,"Podpořeno grantem z Norska / Supported by Norway grants"]
[]
["PRACOVNÍ VÝKAZ "]
["Registrační číslo projektu",null,null,null,"NF-CZ11-OV-1-012-2015"]
["Název projektu",null,null,null,"Prevence následků onemocnění a zdravotních problémů v dětském věku ve FN Olomouc"]
["Název příjemce podpory /partnera ",null,null,null,{"$f":"'VYPLNOVACI LIST'!C5","v":"Fakultní nemocnice Olomouc"}]
["Pořadové číslo Monitorovací zprávy"]
[null,null,null,"             "]
["Zaměstnanec",null,null,"Mgr. Sabina Procházková",null,"Druh pracovního poměru",null,null,"DPP"]
["Pracovní pozice",null,null,"Právník projektu",null,"Výše měsíčního úvazku pro projekt  v hodinách*",null,null,3]
["Vykazovaný měsíc a rok",null,null,"Duben 2015"]
[]
["Přehled odpracovaných hodin "]
["Den v měsíci","Název dne","Počet odprac. hodin","Detailní popis vykonaných aktivit"]
["1.","St"]
["2.","Čt"]
["3.","Pá"]
["4.","So"]
["5.","Ne"]
["6.","Po",null,"Státní svátek"]
["7.","Út",1,"Schůzka s firmou S&T - plnění technických parametrů u části veřejné zakázky Resuscitační pomůcky"]
["8.","St"]
["9.","Čt"," "," "]
["10.","Pá",1,"Vypořádání připomínek ke smlouvě o externím monitoringu"]
["11.","So"]
["12.","Ne"]
["13.","Po"]
["14.","Út"]
["15.","St"]
["16.","Čt"]
["17.","Pá"]
["18.","So"]
["19.","Ne"]
["20.","Po"]
["21.","Út"]
["22.","St"]
["23.","Čt"]
["24.","Pá"]
["25.","So"]
["26.","Ne"]
["27.","Po"]
["28.","Út",1,"Schůzka projektového týmu"]
["29.","St"]
["30.","Čt"]
["Celkem",null,{"$f":"SUM(C19:C46)","v":3},null,null,null,null,"hodin"]
[]
[]
["Součet hodin souvisejících s projektem",null,null,null,null,null,null,null,null,"hodin"]
["Počet hodin proplacených v daném měsíci za projekt",null,null,null,null,3,null,null,null,"hodin"]
[]
["*) V případě, že je pracovní výkaz podepsaný pracovníkem, stvrzuje pracovník svým podpisem pravdivost všech zde uvedených informací. V případě, že je tento formulář podepsán jen nadřízeným pracovníkem, je zaměstnanec povinen předložit čestné prohlášení o výši úvazku prací, vykonávaných pro příjemce a partnera, v samostatném dokumentu. \nPodpisem pracovníka je potvrzeno, že z výše uvedeného projektu mu byla vyplacena mzda za předchozí měsíc."]
[]
[]
[]
["Datum",null,null,"30.04.2015",null,"Datum",null,null,"30.04.2015"]
[]
["Podpis pracovníka",null,null,null,null,"Podpis nadřízeného pracovníka"]

{"sheet":"květen 2015","index":5,"n_rows":62,"n_cols":10,"rows_kept":62,"cut":false,"hidden":false,"merged":[[51,0,51,9],[52,0,52,3],[52,5,52,7],[53,5,53,7],[55,0,57,9],[43,3,43,9],[44,3,44,9],[69,0,71,9],[59,0,59,2],[59,5,59,7],[59,8,59,9],[60,5,60,7],[45,3,45,9],[46,3,46,9],[48,3,48,9],[50,0,50,9],[49,2,49,6],[49,7,49,9],[61,0,61,2],[61,5,61,7],[61,8,61,9],[39,3,39,9],[40,3,40,9],[41,3,41,9],[42,3,42,9],[28,3,28,9],[29,3,29,9],[30,3,30,9],[31,3,31,9],[32,3,32,9],[33,3,33,9],[34,3,34,9],[35,3,35,9],[36,3,36,9],[37,3,37,9],[38,3,38,9],[27,3,27,9],[16,0,16,9],[17,3,17,9],[18,3,18,9],[19,3,19,9],[20,3,20,9],[21,3,21,9],[22,3,22,9],[23,3,23,9],[24,3,24,9],[25,3,25,9],[26,3,26,9],[15,5,15,7],[10,4,10,9],[9,4,9,9],[14,8,14,9],[14,5,14,7],[15,8,15,9],[13,8,13,9],[13,5,13,7],[12,8,12,9],[12,5,12,7],[9,0,9,3],[10,0,10,3],[12,0,12,2],[13,0,13,2],[14,0,14,2],[8,0,8,3],[8,4,8,9],[0,0,0,9],[4,3,4,7],[6,0,6,9],[7,0,7,3],[7,4,7,9]]}
[]
[null,null,null,"                               "]
[null,null,null,null,null,"                                                                             "]
[]
[null,null,null,"Podpořeno grantem z Norska / Supported by Norway grants"]
[]
["PRACOVNÍ VÝKAZ "]
["Registrační číslo projektu",null,null,null,"NF-CZ11-OV-1-012-2015"]
["Název projektu",null,null,null,"Prevence následků onemocnění a zdravotních problémů v dětském věku ve FN Olomouc"]
["Název příjemce podpory /partnera ",null,null,null,{"$f":"'VYPLNOVACI LIST'!C5","v":"Fakultní nemocnice Olomouc"}]
["Pořadové číslo Monitorovací zprávy"]
[null,null,null,"             "]
["Zaměstnanec",null,null,"Mgr. Sabina Procházková",null,"Druh pracovního poměru",null,null,"DPP"]
["Pracovní pozice",null,null,"Právník projektu",null,"Výše měsíčního úvazku pro projekt  v hodinách*",null,null,3]
["Vykazovaný měsíc a rok",null,null,"Květen 2015"]
[]
["Přehled odpracovaných hodin "]
["Den v měsíci","Název dne","Počet odprac. hodin","Detailní popis vykonaných aktivit"]
["1.","Pá",null,"Státní svátek"]
["2.","So"]
["3.","Ne"]
["4.","Po"]
["5.","Út"]
["6.","St",1,"Jednání s firmou EUVIA - externím monitoringem projektu"]
["7.","Čt"]
["8.","Pá",null,"Státní svátek"]
["9.","So"]
["10.","Ne"]
["11.","Po"]
["12.","Út",1,"Otevírání obálek - veřejná zakázka - dodávka přístrojového vybavení + zpracování protokolu, formulářů"]
["13.","St"]
["14.","Čt"]
["15.","Pá"]
["16.","So"]
["17.","Ne"]
["18.","Po"]
["19.","Út"]
["20.","St"]
["21.","Čt"]
["22.","Pá"]
["23.","So"]
["24.","Ne"]
["25.","Po"]
["26.","Út",1,"Schůzka projektového týmu"]
["27.","St"]
["28.","Čt"]
["29.","Pá"]
["30.","So"]
["31.","Ne"]
["Celkem",null,{"$f":"SUM(C19:C46)","v":3},null,null,null,null,"hodin"]
[]
[]
["Součet hodin souvisejících s projektem",null,null,null,null,null,null,null,null,"hodin"]
["Počet hodin proplacených v daném měsíci za projekt",null,null,null,null,3,null,null,null,"hodin"]
[]
["*) V případě, že je pracovní výkaz podepsaný pracovníkem, stvrzuje pracovník svým podpisem pravdivost všech zde uvedených informací. V případě, že je tento formulář podepsán jen nadřízeným pracovníkem, je zaměstnanec povinen předložit čestné prohlášení o výši úvazku prací, vykonávaných pro příjemce a partnera, v samostatném dokumentu. \nPodpisem pracovníka je potvrzeno, že z výše uvedeného projektu mu byla vyplacena mzda za předchozí měsíc."]
[]
[]
[]
["Datum",null,null,"31.05.2015",null,"Datum",null,null,"31.05.2015"]
[]
["Podpis pracovníka",null,null,null,null,"Podpis nadřízeného pracovníka"]

{"sheet":"červen 2015","index":6,"n_rows":61,"n_cols":10,"rows_kept":61,"cut":false,"hidden":false,"merged":[[68,0,70,9],[58,0,58,2],[58,5,58,7],[58,8,58,9],[59,5,59,7],[60,0,60,2],[60,5,60,7],[60,8,60,9],[54,0,56,9],[44,3,44,9],[45,3,45,9],[46,3,46,9],[47,3,47,9],[48,2,48,6],[48,7,48,9],[49,0,49,9],[50,0,50,9],[51,0,51,3],[51,5,51,7],[52,5,52,7],[43,3,43,9],[32,3,32,9],[33,3,33,9],[34,3,34,9],[35,3,35,9],[36,3,36,9],[37,3,37,9],[38,3,38,9],[39,3,39,9],[40,3,40,9],[41,3,41,9],[42,3,42,9],[31,3,31,9],[20,3,20,9],[21,3,21,9],[22,3,22,9],[23,3,23,9],[24,3,24,9],[25,3,25,9],[26,3,26,9],[27,3,27,9],[28,3,28,9],[29,3,29,9],[30,3,30,9],[19,3,19,9],[13,0,13,2],[13,5,13,7],[13,8,13,9],[14,0,14,2],[14,5,14,7],[14,8,14,9],[15,5,15,7],[15,8,15,9],[16,0,16,9],[17,3,17,9],[18,3,18,9],[9,0,9,3],[9,4,9,9],[10,0,10,3],[10,4,10,9],[12,0,12,2],[12,5,12,7],[12,8,12,9],[8,0,8,3],[8,4,8,9],[0,0,0,9],[4,3,4,7],[6,0,6,9],[7,0,7,3],[7,4,7,9]]}
[]
[null,null,null,"                               "]
[null,null,null,null,null,"                                                                             "]
[]
[null,null,null,"Podpořeno grantem z Norska / Supported by Norway grants"]
[]
["PRACOVNÍ VÝKAZ "]
["Registrační číslo projektu",null,null,null,"NF-CZ11-OV-1-012-2015"]
["Název projektu",null,null,null,"Prevence následků onemocnění a zdravotních problémů v dětském věku ve FN Olomouc"]
["Název příjemce podpory /partnera ",null,null,null,{"$f":"'VYPLNOVACI LIST'!C5","v":"Fakultní nemocnice Olomouc"}]
["Pořadové číslo Monitorovací zprávy"]
[null,null,null,"             "]
["Zaměstnanec",null,null,"Mgr. Sabina Procházková",null,"Druh pracovního poměru",null,null,"DPP"]
["Pracovní pozice",null,null,"Právník projektu",null,"Výše měsíčního úvazku pro projekt  v hodinách*",null,null,3]
["Vykazovaný měsíc a rok",null,null,"Červen 2015"]
[]
["Přehled odpracovaných hodin "]
["Den v měsíci","Název dne","Počet odprac. hodin","Detailní popis vykonaných aktivit"]
["1.","Po"]
["2.","Út"]
["3.","St"]
["4.","Čt"]
["5.","Pá"]
["6.","So"]
["7.","Ne"]
["8.","Po"]
["9.","Út",1,"Připomínkové řízení návrhů kupních smluv Sítnicová kamera, Ultrazvukový přístroj, Zařízení pro tlakové mapování - MZd, FNOL"]
["10.","St",1,"Konzultace - právní úprava vzmr Dodávka přístrojového vybavení"]
["11.","Čt"]
["12.","Pá"]
["13.","So"]
["14.","Ne"]
["15.","Po"]
["16.","Út"]
["17.","St"]
["18.","Čt"]
["19.","Pá"]
["20.","So"]
["21.","Ne"]
["22.","Po"]
["23.","Út",1,"Schůzka projektového týmu"]
["24.","St"]
["25.","Čt"]
["26.","Pá"]
["27.","So"]
["28.","Ne"]
["29.","Po"]
["30.","Út"]
["Celkem",null,{"$f":"SUM(C19:C46)","v":3},null,null,null,null,"hodin"]
[]
[]
["Součet hodin souvisejících s projektem",null,null,null,null,null,null,null,null,"hodin"]
["Počet hodin proplacených v daném měsíci za projekt",null,null,null,null,3,null,null,null,"hodin"]
[]
["*) V případě, že je pracovní výkaz podepsaný pracovníkem, stvrzuje pracovník svým podpisem pravdivost všech zde uvedených informací. V případě, že je tento formulář podepsán jen nadřízeným pracovníkem, je zaměstnanec povinen předložit čestné prohlášení o výši úvazku prací, vykonávaných pro příjemce a partnera, v samostatném dokumentu. \nPodpisem pracovníka je potvrzeno, že z výše uvedeného projektu mu byla vyplacena mzda za předchozí měsíc."]
[]
[]
[]
["Datum",null,null,"30.06.2015",null,"Datum",null,null,"30.06.2015"]
[]
["Podpis pracovníka",null,null,null,null,"Podpis nadřízeného pracovníka"]

{"sheet":"červenec 2015","index":7,"n_rows":61,"n_cols":10,"rows_kept":61,"cut":false,"hidden":false,"merged":[[50,0,50,9],[51,0,51,3],[51,5,51,7],[52,5,52,7],[54,0,56,9],[68,0,70,9],[58,0,58,2],[58,5,58,7],[58,8,58,9],[59,5,59,7],[60,0,60,2],[60,5,60,7],[60,8,60,9],[44,3,44,9],[45,3,45,9],[46,3,46,9],[47,3,47,9],[38,3,38,9],[39,3,39,9],[40,3,40,9],[41,3,41,9],[42,3,42,9],[48,3,48,9],[49,2,49,6],[49,7,49,9],[37,3,37,9],[26,3,26,9],[27,3,27,9],[28,3,28,9],[29,3,29,9],[30,3,30,9],[31,3,31,9],[32,3,32,9],[33,3,33,9],[34,3,34,9],[35,3,35,9],[36,3,36,9],[43,3,43,9],[25,3,25,9],[15,5,15,7],[15,8,15,9],[16,0,16,9],[17,3,17,9],[18,3,18,9],[19,3,19,9],[20,3,20,9],[21,3,21,9],[22,3,22,9],[23,3,23,9],[24,3,24,9],[13,0,13,2],[13,5,13,7],[13,8,13,9],[14,0,14,2],[14,5,14,7],[14,8,14,9],[9,0,9,3],[9,4,9,9],[10,0,10,3],[10,4,10,9],[12,0,12,2],[12,5,12,7],[12,8,12,9],[8,0,8,3],[8,4,8,9],[0,0,0,9],[4,3,4,7],[6,0,6,9],[7,0,7,3],[7,4,7,9]]}
[]
[null,null,null,"                               "]
[null,null,null,null,null,"                                                                             "]
[]
[null,null,null,"Podpořeno grantem z Norska / Supported by Norway grants"]
[]
["PRACOVNÍ VÝKAZ "]
["Registrační číslo projektu",null,null,null,"NF-CZ11-OV-1-012-2015"]
["Název projektu",null,null,null,"Prevence následků onemocnění a zdravotních problémů v dětském věku ve FN Olomouc"]
["Název příjemce podpory /partnera ",null,null,null,{"$f":"'VYPLNOVACI LIST'!C5","v":"Fakultní nemocnice Olomouc"}]
["Pořadové číslo Monitorovací zprávy"]
[null,null,null,"             "]
["Zaměstnanec",null,null,"Mgr. Sabina Procházková",null,"Druh pracovního poměru",null,null,"DPP"]
["Pracovní pozice",null,null,"Právník projektu",null,"Výše měsíčního úvazku pro projekt  v hodinách*",null,null,3]
["Vykazovaný měsíc a rok",null,null,"Červenec 2015"]
[]
["Přehled odpracovaných hodin "]
["Den v měsíci","Název dne","Počet odprac. hodin","Detailní popis vykonaných aktivit"]
["1.","St",1,"Zajištění podpisu kupních smluv s vítěznými dodavateli z veřejné zakázky na dodávky zdrav. techniky - archivace smluv"]
["2.","Čt",1,"Vyhodnocení vzmr \"výroba a tisk edukačních brožur\""]
["3.","Pá"]
["4.","So"]
["5.","Ne"]
["6.","Po",null,"Státní svátek"]
["7.","Út"]
["8.","St"]
["9.","Čt"]
["10.","Pá"]
["11.","So"]
["12.","Ne"]
["13.","Po"]
["14.","Út"]
["15.","St"]
["16.","Čt"]
["17.","Pá"]
["18.","So"]
["19.","Ne"]
["20.","Po"]
["21.","Út"]
["22.","St"]
["23.","Čt",1,"Schůzka projektového týmu"]
["24.","Pá"]
["25.","So"]
["26.","Ne"]
["27.","Po"]
["28.","Út"]
["29.","St"]
["30.","Čt"]
[31,"Pá"]
["Celkem",null,{"$f":"SUM(C19:C49)","v":3},null,null,null,null,"hodin"]
[]
["Součet hodin souvisejících s projektem",null,null,null,null,null,null,null,null,"hodin"]
["Počet hodin proplacených v daném měsíci za projekt",null,null,null,null,null,null,null,null,"hodin"]
[]
["*) V případě, že je pracovní výkaz podepsaný pracovníkem, stvrzuje pracovník svým podpisem pravdivost všech zde uvedených informací. V případě, že je tento formulář podepsán jen nadřízeným pracovníkem, je zaměstnanec povinen předložit čestné prohlášení o výši úvazku prací, vykonávaných pro příjemce a partnera, v samostatném dokumentu. \nPodpisem pracovníka je potvrzeno, že z výše uvedeného projektu mu byla vyplacena mzda za předchozí měsíc."]
[]
[]
[]
["Datum",null,null,"31.07.2015",null,"Datum",null,null,"31.07.2015"]
[]
["Podpis pracovníka",null,null,null,null,"Podpis nadřízeného pracovníka"]

{"sheet":"srpen 2015","index":8,"n_rows":61,"n_cols":10,"rows_kept":61,"cut":false,"hidden":false,"merged":[[50,0,50,9],[51,0,51,3],[51,5,51,7],[52,5,52,7],[54,0,56,9],[68,0,70,9],[58,0,58,2],[58,5,58,7],[58,8,58,9],[59,5,59,7],[60,0,60,2],[60,5,60,7],[60,8,60,9],[44,3,44,9],[45,3,45,9],[46,3,46,9],[47,3,47,9],[38,3,38,9],[39,3,39,9],[40,3,40,9],[41,3,41,9],[42,3,42,9],[48,3,48,9],[49,2,49,6],[49,7,49,9],[37,3,37,9],[26,3,26,9],[27,3,27,9],[28,3,28,9],[29,3,29,9],[30,3,30,9],[31,3,31,9],[32,3,32,9],[33,3,33,9],[34,3,34,9],[35,3,35,9],[36,3,36,9],[43,3,43,9],[25,3,25,9],[15,5,15,7],[15,8,15,9],[16,0,16,9],[17,3,17,9],[18,3,18,9],[19,3,19,9],[20,3,20,9],[21,3,21,9],[22,3,22,9],[23,3,23,9],[24,3,24,9],[13,0,13,2],[13,5,13,7],[13,8,13,9],[14,0,14,2],[14,5,14,7],[14,8,14,9],[9,0,9,3],[9,4,9,9],[10,0,10,3],[10,4,10,9],[12,0,12,2],[12,5,12,7],[12,8,12,9],[8,0,8,3],[8,4,8,9],[0,0,0,9],[4,3,4,7],[6,0,6,9],[7,0,7,3],[7,4,7,9]]}
[]
[null,null,null,"                               "]
[null,null,null,null,null,"                                                                             "]
[]
[null,null,null,"Podpořeno grantem z Norska / Supported by Norway grants"]
[]
["PRACOVNÍ VÝKAZ "]
["Registrační číslo projektu",null,null,null,"NF-CZ11-OV-1-012-2015"]
["Název projektu",null,null,null,"Prevence následků onemocnění a zdravotních problémů v dětském věku ve FN Olomouc"]
["Název příjemce podpory /partnera ",null,null,null,{"$f":"'VYPLNOVACI LIST'!C5","v":"Fakultní nemocnice Olomouc"}]
["Pořadové číslo Monitorovací zprávy"]
[null,null,null,"             "]
["Zaměstnanec",null,null,"Mgr. Sabina Procházková",null,"Druh pracovního poměru",null,null,"DPP"]
["Pracovní pozice",null,null,"Právník projektu",null,"Výše měsíčního úvazku pro projekt  v hodinách*",null,null,3]
["Vykazovaný měsíc a rok",null,null,"Srpen 2015"]
[]
["Přehled odpracovaných hodin "]
["Den v měsíci","Název dne","Počet odprac. hodin","Detailní popis vykonaných aktivit"]
["1.","So"]
["2.","Ne"]
["3.","Po"]
["4.","Út"]
["5.","St"]
["6.","Čt"]
["7.","Pá"]
["8.","So"]
["9.","Ne"]
["10.","Po"]
["11.","Út"]
["12.","St"]
["13.","Čt"]
["14.","Pá"]
["15.","So"]
["16.","Ne"]
["17.","Po"]
["18.","Út"]
["19.","St"]
["20.","Čt",2,"schůzka s projektovým manažerem a odborným garantem projektu - téma: evidence počtu vyšetřených dětí vs. Zákon o ochraně osobních údajů"]
["21.","Pá"]
["22.","So"]
["23.","Ne"]
["24.","Po"]
["25.","Út"]
["26.","St",1,"schůzka projektového týmu"]
["27.","Čt"]
["28.","Pá"]
["29.","So"]
["30.","Ne"]
["31.","Po"]
["Celkem",null,{"$f":"SUM(C19:C49)","v":3},null,null,null,null,"hodiny"]
[]
["Součet hodin souvisejících s projektem",null,null,null,null,null,null,null,null,"hodin"]
["Počet hodin proplacených v daném měsíci za projekt",null,null,null,null,3,null,null,null,"hodin"]
[]
["*) V případě, že je pracovní výkaz podepsaný pracovníkem, stvrzuje pracovník svým podpisem pravdivost všech zde uvedených informací. V případě, že je tento formulář podepsán jen nadřízeným pracovníkem, je zaměstnanec povinen předložit čestné prohlášení o výši úvazku prací, vykonávaných pro příjemce a partnera, v samostatném dokumentu. \nPodpisem pracovníka je potvrzeno, že z výše uvedeného projektu mu byla vyplacena mzda za předchozí měsíc."]
[]
[]
[]
["Datum",null,null,"31.08.2015",null,"Datum",null,null,"31.08.2015"]
[]
["Podpis pracovníka",null,null,null,null,"Podpis nadřízeného pracovníka"]

{"sheet":"září 2015","index":9,"n_rows":61,"n_cols":10,"rows_kept":61,"cut":false,"hidden":false,"merged":[[68,0,70,9],[58,0,58,2],[58,5,58,7],[58,8,58,9],[59,5,59,7],[60,0,60,2],[60,5,60,7],[60,8,60,9],[54,0,56,9],[44,3,44,9],[45,3,45,9],[46,3,46,9],[47,3,47,9],[48,2,48,6],[48,7,48,9],[49,0,49,9],[50,0,50,9],[51,0,51,3],[51,5,51,7],[52,5,52,7],[43,3,43,9],[32,3,32,9],[33,3,33,9],[34,3,34,9],[35,3,35,9],[36,3,36,9],[37,3,37,9],[38,3,38,9],[39,3,39,9],[40,3,40,9],[41,3,41,9],[42,3,42,9],[31,3,31,9],[20,3,20,9],[21,3,21,9],[22,3,22,9],[23,3,23,9],[24,3,24,9],[25,3,25,9],[26,3,26,9],[27,3,27,9],[28,3,28,9],[29,3,29,9],[30,3,30,9],[19,3,19,9],[13,0,13,2],[13,5,13,7],[13,8,13,9],[14,0,14,2],[14,5,14,7],[14,8,14,9],[15,5,15,7],[15,8,15,9],[16,0,16,9],[17,3,17,9],[18,3,18,9],[9,0,9,3],[9,4,9,9],[10,0,10,3],[10,4,10,9],[12,0,12,2],[12,5,12,7],[12,8,12,9],[8,0,8,3],[8,4,8,9],[0,0,0,9],[4,3,4,7],[6,0,6,9],[7,0,7,3],[7,4,7,9]]}
[]
[null,null,null,"                               "]
[null,null,null,null,null,"                                                                             "]
[]
[null,null,null,"Podpořeno grantem z Norska / Supported by Norway grants"]
[]
["PRACOVNÍ VÝKAZ "]
["Registrační číslo projektu",null,null,null,"NF-CZ11-OV-1-012-2015"]
["Název projektu",null,null,null,"Prevence následků onemocnění a zdravotních problémů v dětském věku ve FN Olomouc"]
["Název příjemce podpory /partnera ",null,null,null,{"$f":"'VYPLNOVACI LIST'!C5","v":"Fakultní nemocnice Olomouc"}]
["Pořadové číslo Monitorovací zprávy"]
[null,null,null,"             "]
["Zaměstnanec",null,null,"Mgr. Sabina Procházková",null,"Druh pracovního poměru",null,null,"DPP"]
["Pracovní pozice",null,null,"Právník projektu",null,"Výše měsíčního úvazku pro projekt  v hodinách*",null,null,3]
["Vykazovaný měsíc a rok",null,null,"Září 2015"]
[]
["Přehled odpracovaných hodin "]
["Den v měsíci","Název dne","Počet odprac. hodin","Detailní popis vykonaných aktivit"]
["1.","Út"]
["2.","St"]
["3.","Čt"]
["4.","Pá"]
["5.","So"]
["6.","Ne"]
["7.","Po"]
["8.","Út"]
["9.","St"]
["10.","Čt"]
["11.","Pá"," "]
["12.","So"]
["13.","Ne"]
["14.","Po"]
["15.","Út"]
["16.","St"]
["17.","Čt",2,"Jednání s odborný garantem, projektovým manažerem a paní Slaninovou - téma konference k projektu"]
["18.","Pá"]
["19.","So"]
["20.","Ne"]
["21.","Po",null," "]
["22.","Út"]
["23.","St"]
["24.","Čt",1,"Schůzka projektového týmu"]
["25.","Pá",null," "]
["26.","So"]
["27.","Ne"]
["28.","Po",null,"Státní svátek"]
["29.","Út"]
["30.","St"]
["Celkem",null,{"$f":"SUM(C19:C48)","v":3},null,null,null,null,"hodin"]
[]
[" "]
["Součet hodin souvisejících s projektem",null,null,null,null,null,null,null,null,"hodin"]
["Počet hodin proplacených v daném měsíci za projekt",null,null,null,null,3,null,null,null,"hodin"]
[]
["*) V případě, že je pracovní výkaz podepsaný pracovníkem, stvrzuje pracovník svým podpisem pravdivost všech zde uvedených informací. V případě, že je tento formulář podepsán jen nadřízeným pracovníkem, je zaměstnanec povinen předložit čestné prohlášení o výši úvazku prací, vykonávaných pro příjemce a partnera, v samostatném dokumentu. \nPodpisem pracovníka je potvrzeno, že z výše uvedeného projektu mu byla vyplacena mzda za předchozí měsíc."]
[]
[]
[]
["Datum",null,null,"30.09.2015",null,"Datum",null,null,"30.09.2015"]
[]
["Podpis pracovníka",null,null,null,null,"Podpis nadřízeného pracovníka"]

{"sheet":"říjen 2015","index":10,"n_rows":61,"n_cols":10,"rows_kept":61,"cut":false,"hidden":false,"merged":[[50,0,50,9],[51,0,51,3],[51,5,51,7],[52,5,52,7],[54,0,56,9],[68,0,70,9],[58,0,58,2],[58,5,58,7],[58,8,58,9],[59,5,59,7],[60,0,60,2],[60,5,60,7],[60,8,60,9],[44,3,44,9],[45,3,45,9],[46,3,46,9],[47,3,47,9],[38,3,38,9],[39,3,39,9],[40,3,40,9],[41,3,41,9],[42,3,42,9],[48,3,48,9],[49,2,49,6],[49,7,49,9],[37,3,37,9],[26,3,26,9],[27,3,27,9],[28,3,28,9],[29,3,29,9],[30,3,30,9],[31,3,31,9],[32,3,32,9],[33,3,33,9],[34,3,34,9],[35,3,35,9],[36,3,36,9],[43,3,43,9],[25,3,25,9],[15,5,15,7],[15,8,15,9],[16,0,16,9],[17,3,17,9],[18,3,18,9],[19,3,19,9],[20,3,20,9],[21,3,21,9],[22,3,22,9],[23,3,23,9],[24,3,24,9],[13,0,13,2],[13,5,13,7],[13,8,13,9],[14,0,14,2],[14,5,14,7],[14,8,14,9],[9,0,9,3],[9,4,9,9],[10,0,10,3],[10,4,10,9],[12,0,12,2],[12,5,12,7],[12,8,12,9],[8,0,8,3],[8,4,8,9],[0,0,0,9],[4,3,4,7],[6,0,6,9],[7,0,7,3],[7,4,7,9]]}
[]
[null,null,null,"                               "]
[null,null,null,null,null,"                                                                             "]
[]
[null,null,null,"Podpořeno grantem z Norska / Supported by Norway grants"]
[]
["PRACOVNÍ VÝKAZ "]
["Registrační číslo projektu",null,null,null,"NF-CZ11-OV-1-012-2015"]
["Název projektu",null,null,null,"Prevence následků onemocnění a zdravotních problémů v dětském věku ve FN Olomouc"]
["Název příjemce podpory /partnera ",null,null,null,{"$f":"'VYPLNOVACI LIST'!C5","v":"Fakultní nemocnice Olomouc"}]
["Pořadové číslo Monitorovací zprávy"]
[null,null,null,"             "]
["Zaměstnanec",null,null,"Mgr. Sabina Procházková",null,"Druh pracovního poměru",null,null,"DPP"]
["Pracovní pozice",null,null,"Právník projektu",null,"Výše měsíčního úvazku pro projekt  v hodinách*",null,null,3]
["Vykazovaný měsíc a rok",null,null,"Říjen 2015"]
[]
["Přehled odpracovaných hodin "]
["Den v měsíci","Název dne","Počet odprac. hodin","Detailní popis vykonaných aktivit"]
["1.","Čt"]
["2.","Pá"]
["3.","So"]
["4.","Ne"]
["5.","Po"]
["6.","Út"]
["7.","St"]
["8.","Čt"]
["9.","Pá"]
["10.","So"]
["11.","Ne"]
["12.","Po"]
["13.","Út"]
["14.","St"]
["15.","Čt"]
["16.","Pá"]
["17.","So"]
["18.","Ne"]
["19.","Po"]
["20.","Út"]
["21.","St"]
["22.","Čt"]
["23.","Pá"]
["24.","So"]
["25.","Ne"]
["26.","Po"]
["27.","Út",2,"Zpracování výzvy pro vypsání vzmr - zajištění konference (občerstvení, pronájem sálu)"]
["28.","St",null,"Státní svátek"]
["29.","Čt"]
["30.","Pá",1,"Schůzka projektového týmu"]
["31.","So"]
["Celkem",null,{"$f":"SUM(C19:C49)","v":3},null,null,null,null,"hodin"]
[]
["Součet hodin souvisejících s projektem",null,null,null,null,null,null,null,null,"hodin"]
["Počet hodin proplacených v daném měsíci za projekt",null,null,null,null,3,null,null,null,"hodin"]
[]
["*) V případě, že je pracovní výkaz podepsaný pracovníkem, stvrzuje pracovník svým podpisem pravdivost všech zde uvedených informací. V případě, že je tento formulář podepsán jen nadřízeným pracovníkem, je zaměstnanec povinen předložit čestné prohlášení o výši úvazku prací, vykonávaných pro příjemce a partnera, v samostatném dokumentu. \nPodpisem pracovníka je potvrzeno, že z výše uvedeného projektu mu byla vyplacena mzda za předchozí měsíc."]
[]
[]
[]
["Datum",null,null,"30.10.2015",null,"Datum",null,null,"30.10.2015"]
[]
["Podpis pracovníka",null,null,null,null,"Podpis nadřízeného pracovníka"]

{"sheet":"listopad 2015","index":11,"n_rows":61,"n_cols":10,"rows_kept":61,"cut":false,"hidden":false,"merged":[[68,0,70,9],[58,0,58,2],[58,5,58,7],[58,8,58,9],[59,5,59,7],[60,0,60,2],[60,5,60,7],[60,8,60,9],[54,0,56,9],[44,3,44,9],[45,3,45,9],[46,3,46,9],[47,3,47,9],[48,2,48,6],[48,7,48,9],[49,0,49,9],[50,0,50,9],[51,0,51,3],[51,5,51,7],[52,5,52,7],[43,3,43,9],[32,3,32,9],[33,3,33,9],[34,3,34,9],[35,3,35,9],[36,3,36,9],[37,3,37,9],[38,3,38,9],[39,3,39,9],[40,3,40,9],[41,3,41,9],[42,3,42,9],[31,3,31,9],[20,3,20,9],[21,3,21,9],[22,3,22,9],[23,3,23,9],[24,3,24,9],[25,3,25,9],[26,3,26,9],[27,3,27,9],[28,3,28,9],[29,3,29,9],[30,3,30,9],[19,3,19,9],[13,0,13,2],[13,5,13,7],[13,8,13,9],[14,0,14,2],[14,5,14,7],[14,8,14,9],[15,5,15,7],[15,8,15,9],[16,0,16,9],[17,3,17,9],[18,3,18,9],[9,0,9,3],[9,4,9,9],[10,0,10,3],[10,4,10,9],[12,0,12,2],[12,5,12,7],[12,8,12,9],[8,0,8,3],[8,4,8,9],[0,0,0,9],[4,3,4,7],[6,0,6,9],[7,0,7,3],[7,4,7,9]]}
[]
[null,null,null,"                               "]
[null,null,null,null,null,"                                                                             "]
[]
[null,null,null,"Podpořeno grantem z Norska / Supported by Norway grants"]
[]
["PRACOVNÍ VÝKAZ "]
["Registrační číslo projektu",null,null,null,"NF-CZ11-OV-1-012-2015"]
["Název projektu",null,null,null,"Prevence následků onemocnění a zdravotních problémů v dětském věku ve FN Olomouc"]
["Název příjemce podpory /partnera ",null,null,null,{"$f":"'VYPLNOVACI LIST'!C5","v":"Fakultní nemocnice Olomouc"}]
["Pořadové číslo Monitorovací zprávy"]
[null,null,null,"             "]
["Zaměstnanec",null,null,"Mgr. Sabina Procházková",null,"Druh pracovního poměru",null,null,"DPP"]
["Pracovní pozice",null,null,"Právník projektu",null,"Výše měsíčního úvazku pro projekt  v hodinách*",null,null,3]
["Vykazovaný měsíc a rok",null,null,"Listopad 2015"]
[]
["Přehled odpracovaných hodin "]
["Den v měsíci","Název dne","Počet odprac. hodin","Detailní popis vykonaných aktivit"]
["1.","Ne"]
["2.","Po"]
["3.","Út"]
["4.","St"]
["5.","Čt"]
["6.","Pá"]
["7.","So"]
["8.","Ne"]
["9.","Po"]
["10.","Út"]
["11.","St"]
["12.","Čt"]
["13.","Pá"]
["14.","So"]
["15.","Ne"]
["16.","Po"]
["17.","Út",null,"Státní svátek"]
["18.","St"]
["19.","Čt"]
["20.","Pá"]
["21.","So"]
["22.","Ne"]
["23.","Po"]
["24.","Út"]
["25.","St",1,"Schůzka projektového týmu"]
["26.","Čt"]
["27.","Pá"]
["28.","So"]
["29.","Ne"]
["30.","Po",2,"Zpracování zápisu o vyhodnocení vzmr - zajištění konference, jednání hodnotící komise"]
["Celkem",null,{"$f":"SUM(C19:C48)","v":3},null,null,null,null,"hodin"]
[]
[]
["Součet hodin souvisejících s projektem",null,null,null,null,null,null,null,null,"hodin"]
["Počet hodin proplacených v daném měsíci za projekt",null,null,null,null,null,null,null,null,"hodin"]
[]
["*) V případě, že je pracovní výkaz podepsaný pracovníkem, stvrzuje pracovník svým podpisem pravdivost všech zde uvedených informací. V případě, že je tento formulář podepsán jen nadřízeným pracovníkem, je zaměstnanec povinen předložit čestné prohlášení o výši úvazku prací, vykonávaných pro příjemce a partnera, v samostatném dokumentu. \nPodpisem pracovníka je potvrzeno, že z výše uvedeného projektu mu byla vyplacena mzda za předchozí měsíc."]
[]
[]
[]
["Datum",null,null,"30.11.2015",null,"Datum",null,null,"30.11.2015"]
[]
["Podpis pracovníka",null,null,null,null,"Podpis nadřízeného pracovníka"]

{"sheet":"prosinec 2015","index":12,"n_rows":61,"n_cols":10,"rows_kept":61,"cut":false,"hidden":false,"merged":[[50,0,50,9],[51,0,51,3],[51,5,51,7],[52,5,52,7],[54,0,56,9],[68,0,70,9],[58,0,58,2],[58,5,58,7],[58,8,58,9],[59,5,59,7],[60,0,60,2],[60,5,60,7],[60,8,60,9],[44,3,44,9],[45,3,45,9],[46,3,46,9],[47,3,47,9],[38,3,38,9],[39,3,39,9],[40,3,40,9],[41,3,41,9],[42,3,42,9],[48,3,48,9],[49,2,49,6],[49,7,49,9],[37,3,37,9],[26,3,26,9],[27,3,27,9],[28,3,28,9],[29,3,29,9],[30,3,30,9],[31,3,31,9],[32,3,32,9],[33,3,33,9],[34,3,34,9],[35,3,35,9],[36,3,36,9],[43,3,43,9],[25,3,25,9],[15,5,15,7],[15,8,15,9],[16,0,16,9],[17,3,17,9],[18,3,18,9],[19,3,19,9],[20,3,20,9],[21,3,21,9],[22,3,22,9],[23,3,23,9],[24,3,24,9],[13,0,13,2],[13,5,13,7],[13,8,13,9],[14,0,14,2],[14,5,14,7],[14,8,14,9],[9,0,9,3],[9,4,9,9],[10,0,10,3],[10,4,10,9],[12,0,12,2],[12,5,12,7],[12,8,12,9],[8,0,8,3],[8,4,8,9],[0,0,0,9],[4,3,4,7],[6,0,6,9],[7,0,7,3],[7,4,7,9]]}
[]
[null,null,null,"                               "]
[null,null,null,null,null,"                                                                             "]
[]
[null,null,null,"Podpořeno grantem z Norska / Supported by Norway grants"]
[]
["PRACOVNÍ VÝKAZ "]
["Registrační číslo projektu",null,null,null,"NF-CZ11-OV-1-012-2015"]
["Název projektu",null,null,null,"Prevence následků onemocnění a zdravotních problémů v dětském věku ve FN Olomouc"]
["Název příjemce podpory /partnera ",null,null,null,{"$f":"'VYPLNOVACI LIST'!C5","v":"Fakultní nemocnice Olomouc"}]
["Pořadové číslo Monitorovací zprávy"]
[null,null,null,"             "]
["Zaměstnanec",null,null,"Mgr. Sabina Procházková",null,"Druh pracovního poměru",null,null,"DPP"]
["Pracovní pozice",null,null,"Právník projektu",null,"Výše měsíčního úvazku pro projekt  v hodinách*",null,null,3]
["Vykazovaný měsíc a rok",null,null,"Prosinec 2015"]
[]
["Přehled odpracovaných hodin "]
["Den v měsíci","Název dne","Počet odprac. hodin","Detailní popis vykonaných aktivit"]
["1.","Út"]
["2.","St"]
["3.","Čt"]
["4.","Pá"]
["5.","So"]
["6.","Ne"]
["7.","Po"]
["8.","Út"]
["9.","St"]
["10.","Čt"]
["11.","Pá"]
["12.","So"]
["13.","Ne"]
["14.","Po"]
["15.","Út",1,"Schůzka projektového týmu"]
["16.","St"]
["17.","Čt"]
["18.","Pá"]
["19.","So"]
["20.","Ne"]
["21.","Po"]
["22.","Út"]
["23.","St"]
["24.","Čt",null,"Státní svátek"]
["25.","Pá",null,"Státní svátek"]
["26.","So",null,"Státní svátek"]
["27.","Ne"]
["28.","Po"]
["29.","Út"]
["30.","St"]
["31.","Čt"]
["Celkem",null,{"$f":"SUM(C19:C49)","v":1},null,null,null,null,"hodin"]
[]
["Součet hodin souvisejících s projektem",null,null,null,null,null,null,null,null,"hodin"]
["Počet hodin proplacených v daném měsíci za projekt",null,null,null,null,null,null,null,null,"hodin"]
[]
["*) V případě, že je pracovní výkaz podepsaný pracovníkem, stvrzuje pracovník svým podpisem pravdivost všech zde uvedených informací. V případě, že je tento formulář podepsán jen nadřízeným pracovníkem, je zaměstnanec povinen předložit čestné prohlášení o výši úvazku prací, vykonávaných pro příjemce a partnera, v samostatném dokumentu. \nPodpisem pracovníka je potvrzeno, že z výše uvedeného projektu mu byla vyplacena mzda za předchozí měsíc."]
[]
[]
[]
["Datum",null,null,"31.12.2015",null,"Datum",null,null,"31.12.2015"]
[]
["Podpis pracovníka",null,null,null,null,"Podpis nadřízeného pracovníka"]

{"sheet":"leden 2016","index":13,"n_rows":61,"n_cols":10,"rows_kept":61,"cut":false,"hidden":false,"merged":[[59,5,59,7],[60,0,60,2],[60,5,60,7],[60,8,60,9],[68,0,70,9],[58,0,58,2],[58,5,58,7],[58,8,58,9],[44,3,44,9],[45,3,45,9],[46,3,46,9],[47,3,47,9],[48,3,48,9],[49,2,49,6],[49,7,49,9],[50,0,50,9],[51,0,51,3],[51,5,51,7],[52,5,52,7],[54,0,56,9],[43,3,43,9],[32,3,32,9],[33,3,33,9],[34,3,34,9],[35,3,35,9],[36,3,36,9],[37,3,37,9],[38,3,38,9],[39,3,39,9],[40,3,40,9],[41,3,41,9],[42,3,42,9],[31,3,31,9],[20,3,20,9],[21,3,21,9],[22,3,22,9],[23,3,23,9],[24,3,24,9],[25,3,25,9],[26,3,26,9],[27,3,27,9],[28,3,28,9],[29,3,29,9],[30,3,30,9],[19,3,19,9],[13,0,13,2],[13,5,13,7],[13,8,13,9],[14,0,14,2],[14,5,14,7],[14,8,14,9],[15,5,15,7],[15,8,15,9],[16,0,16,9],[17,3,17,9],[18,3,18,9],[9,0,9,3],[9,4,9,9],[10,0,10,3],[10,4,10,9],[12,0,12,2],[12,5,12,7],[12,8,12,9],[8,0,8,3],[8,4,8,9],[0,0,0,9],[4,3,4,7],[6,0,6,9],[7,0,7,3],[7,4,7,9]]}
[]
[null,null,null,"                               "]
[null,null,null,null,null,"                                                                             "]
[]
[null,null,null,"Podpořeno grantem z Norska / Supported by Norway grants"]
[]
["PRACOVNÍ VÝKAZ "]
["Registrační číslo projektu",null,null,null,"NF-CZ11-OV-1-012-2015"]
["Název projektu",null,null,null,"Prevence následků onemocnění a zdravotních problémů v dětském věku ve FN Olomouc"]
["Název příjemce podpory /partnera ",null,null,null,{"$f":"'VYPLNOVACI LIST'!C5","v":"Fakultní nemocnice Olomouc"}]
["Pořadové číslo Monitorovací zprávy"]
[null,null,null,"             "]
["Zaměstnanec",null,null,"Mgr. Sabina Procházková",null,"Druh pracovního poměru",null,null,"DPP"]
["Pracovní pozice",null,null,"Právník projektu",null,"Výše měsíčního úvazku pro projekt  v hodinách*",null,null,3]
["Vykazovaný měsíc a rok",null,null,"Leden 2016"]
[]
["Přehled odpracovaných hodin "]
["Den v měsíci","Název dne","Počet odprac. hodin","Detailní popis vykonaných aktivit"]
["1.","Pá",null,"Státní svátek"]
["2.","So"]
["3.","Ne"]
["4.","Po"]
["5.","Út"]
["6.","St"]
["7.","Čt"]
["8.","Pá",1,"zpracování a zajištění podpisu čestných prohlášení k pojištění a údržbě majetku pořízeného v rámci projektu"]
["9.","So"]
["10.","Ne"]
["11.","Po"]
["12.","Út"]
["13.","St"]
["14.","Čt"]
["15.","Pá"]
["16.","So"]
["17.","Ne"]
["18.","Po"]
["19.","Út"]
["20.","St"]
["21.","Čt"]
["22.","Pá"]
["23.","So"]
["24.","Ne",null," "]
["25.","Po",1,"schůzka projektového týmu "]
["26.","Út",null," "]
["27.","St"]
["28.","Čt"]
["29.","Pá"]
["30.","So"]
["31.","Ne"]
["Celkem",null,{"$f":"SUM(C19:C49)","v":2},null,null,null,null,"hodin"]
[]
["Součet hodin souvisejících s projektem",null,null,null,null,null,null,null,null,"hodin"]
["Počet hodin proplacených v daném měsíci za projekt",null,null,null,null,2,null,null,null,"hodin"]
[]
["*) V případě, že je pracovní výkaz podepsaný pracovníkem, stvrzuje pracovník svým podpisem pravdivost všech zde uvedených informací. V případě, že je tento formulář podepsán jen nadřízeným pracovníkem, je zaměstnanec povinen předložit čestné prohlášení o výši úvazku prací, vykonávaných pro příjemce a partnera, v samostatném dokumentu. \nPodpisem pracovníka je potvrzeno, že z výše uvedeného projektu mu byla vyplacena mzda za předchozí měsíc."]
[]
[]
[]
["Datum",null,null,"29.01.2016",null,"Datum",null,null,"29.01.2016"]
[]
["Podpis pracovníka",null,null,null,null,"Podpis nadřízeného pracovníka"]

{"sheet":"únor 2016","index":14,"n_rows":61,"n_cols":10,"rows_kept":61,"cut":false,"hidden":false,"merged":[[59,5,59,7],[60,0,60,2],[60,5,60,7],[60,8,60,9],[68,0,70,9],[58,0,58,2],[58,5,58,7],[58,8,58,9],[44,3,44,9],[45,3,45,9],[46,3,46,9],[47,3,47,9],[48,3,48,9],[49,2,49,6],[49,7,49,9],[50,0,50,9],[51,0,51,3],[51,5,51,7],[52,5,52,7],[54,0,56,9],[43,3,43,9],[32,3,32,9],[33,3,33,9],[34,3,34,9],[35,3,35,9],[36,3,36,9],[37,3,37,9],[38,3,38,9],[39,3,39,9],[40,3,40,9],[41,3,41,9],[42,3,42,9],[31,3,31,9],[20,3,20,9],[21,3,21,9],[22,3,22,9],[23,3,23,9],[24,3,24,9],[25,3,25,9],[26,3,26,9],[27,3,27,9],[28,3,28,9],[29,3,29,9],[30,3,30,9],[19,3,19,9],[13,0,13,2],[13,5,13,7],[13,8,13,9],[14,0,14,2],[14,5,14,7],[14,8,14,9],[15,5,15,7],[15,8,15,9],[16,0,16,9],[17,3,17,9],[18,3,18,9],[9,0,9,3],[9,4,9,9],[10,0,10,3],[10,4,10,9],[12,0,12,2],[12,5,12,7],[12,8,12,9],[8,0,8,3],[8,4,8,9],[0,0,0,9],[4,3,4,7],[6,0,6,9],[7,0,7,3],[7,4,7,9]]}
["2016-02-01"]
[null,null,null,"                               "]
[null,null,null,null,null,"                                                                             "]
[]
[null,null,null,"Podpořeno grantem z Norska / Supported by Norway grants"]
[]
["PRACOVNÍ VÝKAZ "]
["Registrační číslo projektu",null,null,null,"NF-CZ11-OV-1-012-2015"]
["Název projektu",null,null,null,"Prevence následků onemocnění a zdravotních problémů v dětském věku ve FN Olomouc"]
["Název příjemce podpory /partnera ",null,null,null,{"$f":"'VYPLNOVACI LIST'!C5","v":"Fakultní nemocnice Olomouc"}]
["Pořadové číslo Monitorovací zprávy"]
[null,null,null,"             "]
["Zaměstnanec",null,null,"Mgr. Sabina Procházková",null,"Druh pracovního poměru",null,null,"DPP"]
["Pracovní pozice",null,null,"Právník projektu",null,"Výše měsíčního úvazku pro projekt  v hodinách*",null,null,3]
["Vykazovaný měsíc a rok",null,null,"Únor 2016"]
[]
["Přehled odpracovaných hodin "]
["Den v měsíci","Název dne","Počet odprac. hodin","Detailní popis vykonaných aktivit"]
["1.","Po"]
["2.","Út"]
["3.","St"]
["4.","Čt"]
["5.","Pá"]
["6.","So"]
["7.","Ne"]
["8.","Po"]
["9.","Út"]
["10.","St"]
["11.","Čt"]
["12.","Pá"]
["13.","So"]
["14.","Ne"]
["15.","Po"]
["16.","Út"]
["17.","St"]
["18.","Čt"]
["19.","Pá"]
["20.","So"]
["21.","Ne"]
["22.","Po"," "," "]
["23.","Út"]
["24.","St",null," "]
["25.","Čt",null," "]
["26.","Pá",2,"Vyhodnocení vzmr  pamětní deska - hodnotící komise, odeslání oznámení o výběru, objednávka "]
["27.","So"]
["28.","Ne"]
["29.","Po",1,"schůzka projektového týmu"]
[" "," "]
[" "," "]
["Celkem",null,{"$f":"SUM(C19:C49)","v":3},null,null,null,null,"hodin"]
[]
["Součet hodin souvisejících s projektem",null,null,null,null,null,null,null,null,"hodin"]
["Počet hodin proplacených v daném měsíci za projekt",null,null,null,null,3,null,null,null,"hodin"]
[]
["*) V případě, že je pracovní výkaz podepsaný pracovníkem, stvrzuje pracovník svým podpisem pravdivost všech zde uvedených informací. V případě, že je tento formulář podepsán jen nadřízeným pracovníkem, je zaměstnanec povinen předložit čestné prohlášení o výši úvazku prací, vykonávaných pro příjemce a partnera, v samostatném dokumentu. \nPodpisem pracovníka je potvrzeno, že z výše uvedeného projektu mu byla vyplacena mzda za předchozí měsíc."]
[]
[]
[]
["Datum",null,null,"29.02.2016",null,"Datum",null,null,"29.02.2016"]
[]
["Podpis pracovníka",null,null,null,null,"Podpis nadřízeného pracovníka"]

{"sheet":"březen 2016","index":15,"n_rows":61,"n_cols":10,"rows_kept":61,"cut":false,"hidden":false,"merged":[[59,5,59,7],[60,0,60,2],[60,5,60,7],[60,8,60,9],[68,0,70,9],[58,0,58,2],[58,5,58,7],[58,8,58,9],[44,3,44,9],[45,3,45,9],[46,3,46,9],[47,3,47,9],[48,3,48,9],[49,2,49,6],[49,7,49,9],[50,0,50,9],[51,0,51,3],[51,5,51,7],[52,5,52,7],[54,0,56,9],[43,3,43,9],[32,3,32,9],[33,3,33,9],[34,3,34,9],[35,3,35,9],[36,3,36,9],[37,3,37,9],[38,3,38,9],[39,3,39,9],[40,3,40,9],[41,3,41,9],[42,3,42,9],[31,3,31,9],[20,3,20,9],[21,3,21,9],[22,3,22,9],[23,3,23,9],[24,3,24,9],[25,3,25,9],[26,3,26,9],[27,3,27,9],[28,3,28,9],[29,3,29,9],[30,3,30,9],[19,3,19,9],[13,0,13,2],[13,5,13,7],[13,8,13,9],[14,0,14,2],[14,5,14,7],[14,8,14,9],[15,5,15,7],[15,8,15,9],[16,0,16,9],[17,3,17,9],[18,3,18,9],[9,0,9,3],[9,4,9,9],[10,0,10,3],[10,4,10,9],[12,0,12,2],[12,5,12,7],[12,8,12,9],[8,0,8,3],[8,4,8,9],[0,0,0,9],[4,3,4,7],[6,0,6,9],[7,0,7,3],[7,4,7,9]]}
[]
[null,null,null,"                               "]
[null,null,null,null,null,"                                                                             "]
[]
[null,null,null,"Podpořeno grantem z Norska / Supported by Norway grants"]
[]
["PRACOVNÍ VÝKAZ "]
["Registrační číslo projektu",null,null,null,"NF-CZ11-OV-1-012-2015"]
["Název projektu",null,null,null,"Prevence následků onemocnění a zdravotních problémů v dětském věku ve FN Olomouc"]
["Název příjemce podpory /partnera ",null,null,null,{"$f":"'VYPLNOVACI LIST'!C5","v":"Fakultní nemocnice Olomouc"}]
["Pořadové číslo Monitorovací zprávy"]
[null,null,null,"             "]
["Zaměstnanec",null,null,"Mgr. Sabina Procházková",null,"Druh pracovního poměru",null,null,"DPP"]
["Pracovní pozice",null,null,"Právník projektu",null,"Výše měsíčního úvazku pro projekt  v hodinách*",null,null,3]
["Vykazovaný měsíc a rok",null,null,"Březen 2016"]
[]
["Přehled odpracovaných hodin "]
["Den v měsíci","Název dne","Počet odprac. hodin","Detailní popis vykonaných aktivit"]
["1.","Út"]
["2.","St"]
["3.","Čt"]
["4.","Pá"]
["5.","So"]
["6.","Ne"]
["7.","Po"]
["8.","Út"]
["9.","St"]
["10.","Čt"]
["11.","Pá"]
["12.","So"]
["13.","Ne"]
["14.","Po"]
["15.","Út"]
["16.","St"]
["17.","Čt"]
["18.","Pá"]
["19.","So"]
["20.","Ne"]
["21.","Po"]
["22.","Út",1,"schůzka projektového týmu"]
["23.","St"]
["24.","Čt",null," "]
["25.","Pá",null," "]
["26.","So",null," "]
["27.","Ne"]
["28.","Po",null,"Státní svátek"]
["29.","Út",2,"zpracování prezenčních listin ke konferenci"]
["30.","St"]
["31.","Čt"]
["Celkem",null,{"$f":"SUM(C19:C49)","v":3},null,null,null,null,"hodin"]
[]
["Součet hodin souvisejících s projektem",null,null,null,null,null,null,null,null,"hodin"]
["Počet hodin proplacených v daném měsíci za projekt",null,null,null,null,3,null,null,null,"hodin"]
[]
["*) V případě, že je pracovní výkaz podepsaný pracovníkem, stvrzuje pracovník svým podpisem pravdivost všech zde uvedených informací. V případě, že je tento formulář podepsán jen nadřízeným pracovníkem, je zaměstnanec povinen předložit čestné prohlášení o výši úvazku prací, vykonávaných pro příjemce a partnera, v samostatném dokumentu. \nPodpisem pracovníka je potvrzeno, že z výše uvedeného projektu mu byla vyplacena mzda za předchozí měsíc."]
[]
[]
[]
["Datum",null,null,"31.03.2016",null,"Datum",null,null,"31.03.2016"]
[]
["Podpis pracovníka",null,null,null,null,"Podpis nadřízeného pracovníka"]

{"sheet":"duben 2016","index":16,"n_rows":61,"n_cols":10,"rows_kept":61,"cut":false,"hidden":false,"merged":[[59,5,59,7],[60,0,60,2],[60,5,60,7],[60,8,60,9],[68,0,70,9],[58,0,58,2],[58,5,58,7],[58,8,58,9],[44,3,44,9],[45,3,45,9],[46,3,46,9],[47,3,47,9],[48,3,48,9],[49,2,49,6],[49,7,49,9],[50,0,50,9],[51,0,51,3],[51,5,51,7],[52,5,52,7],[54,0,56,9],[43,3,43,9],[32,3,32,9],[33,3,33,9],[34,3,34,9],[35,3,35,9],[36,3,36,9],[37,3,37,9],[38,3,38,9],[39,3,39,9],[40,3,40,9],[41,3,41,9],[42,3,42,9],[31,3,31,9],[20,3,20,9],[21,3,21,9],[22,3,22,9],[23,3,23,9],[24,3,24,9],[25,3,25,9],[26,3,26,9],[27,3,27,9],[28,3,28,9],[29,3,29,9],[30,3,30,9],[19,3,19,9],[13,0,13,2],[13,5,13,7],[13,8,13,9],[14,0,14,2],[14,5,14,7],[14,8,14,9],[15,5,15,7],[15,8,15,9],[16,0,16,9],[17,3,17,9],[18,3,18,9],[9,0,9,3],[9,4,9,9],[10,0,10,3],[10,4,10,9],[12,0,12,2],[12,5,12,7],[12,8,12,9],[8,0,8,3],[8,4,8,9],[0,0,0,9],[4,3,4,7],[6,0,6,9],[7,0,7,3],[7,4,7,9]]}
["2016-04-01"]
[null,null,null,"                               "]
[null,null,null,null,null,"                                                                             "]
[]
[null,null,null,"Podpořeno grantem z Norska / Supported by Norway grants"]
[]
["PRACOVNÍ VÝKAZ "]
["Registrační číslo projektu",null,null,null,"NF-CZ11-OV-1-012-2015"]
["Název projektu",null,null,null,"Prevence následků onemocnění a zdravotních problémů v dětském věku ve FN Olomouc"]
["Název příjemce podpory /partnera ",null,null,null,{"$f":"'VYPLNOVACI LIST'!C5","v":"Fakultní nemocnice Olomouc"}]
["Pořadové číslo Monitorovací zprávy"]
[null,null,null,"             "]
["Zaměstnanec",null,null,"Mgr. Sabina Procházková",null,"Druh pracovního poměru",null,null,"DPP"]
["Pracovní pozice",null,null,"Právník projektu",null,"Výše měsíčního úvazku pro projekt  v hodinách*",null,null,3]
["Vykazovaný měsíc a rok",null,null,"Duben 2016"]
[]
["Přehled odpracovaných hodin "]
["Den v měsíci","Název dne","Počet odprac. hodin","Detailní popis vykonaných aktivit"]
["1.","Pá"]
["2.","So"]
["3.","Ne"]
["4.","Po",null," "]
["5.","Út"]
["6.","St"]
["7.","Čt"]
["8.","Pá"]
["9.","So"]
["10.","Ne"]
["11.","Po"]
["12.","Út"]
["13.","St"]
["14.","Čt"]
["15.","Pá"]
["16.","So"]
["17.","Ne"]
["18.","Po"]
["19.","Út"]
["20.","St",1,"Závěrečná schůzka projektového týmu"]
["21.","Čt"]
["22.","Pá"]
["23.","So"]
["24.","Ne",null," "]
["25.","Po",null," "]
["26.","Út",null," "]
["27.","St"]
["28.","Čt"]
["29.","Pá"]
["30.","So"]
[" "," "]
["Celkem",null,{"$f":"SUM(C19:C49)","v":1},null,null,null,null,"hodin"]
[]
["Součet hodin souvisejících s projektem",null,null,null,null,null,null,null,null,"hodin"]
["Počet hodin proplacených v daném měsíci za projekt",null,null,null,null,1,null,null,null,"hodin"]
[]
["*) V případě, že je pracovní výkaz podepsaný pracovníkem, stvrzuje pracovník svým podpisem pravdivost všech zde uvedených informací. V případě, že je tento formulář podepsán jen nadřízeným pracovníkem, je zaměstnanec povinen předložit čestné prohlášení o výši úvazku prací, vykonávaných pro příjemce a partnera, v samostatném dokumentu. \nPodpisem pracovníka je potvrzeno, že z výše uvedeného projektu mu byla vyplacena mzda za předchozí měsíc."]
[]
[]
[]
["Datum",null,null,"30.04.2016",null,"Datum",null,null,"30.04.2016"]
[]
["Podpis pracovníka",null,null,null,null,"Podpis nadřízeného pracovníka"]